Workbook

Sheet CA
A1: INSTITUTO MUNICIPAL DE PLANEACIÓN DE IRAPUATO, GTO. Estado Analítico del Ejercicio del Presupuesto de Egresos Clasificación Administrativa Del 1 de Enero al 31 de Diciembre de 2025 (Cifras en Pesos)
B2: Egresos | G2: Subejercicio
A3: Concepto | B3: Aprobado | C3: Ampliaciones/ (Reducciones) | D3: Modificado | E3: Devengado | F3: Pagado
A5: 31120M15P010000 IMPLAN IRAPUATO DIRECCIO | B5: 10,195,305 | C5: -152,696 | D5: =B5+C5 -> 10,042,609 | E5: 8,556,563 | F5: 8,343,397 | G5: =D5-E5 -> 1,486,046
A6: 31120M15P020000 DIRECCION VINCULACION | B6: 827,135 | C6: -300,922 | D6: =B6+C6 -> 526,213 | E6: 462,752 | F6: 459,203 | G6: =D6-E6 -> 63,461
A7: 31120M15P030000 DIRECCION GESTION DE PLA | B7: 16,689,197 | C7: 6,042,005 | D7: 22,731,202 | E7: 15,528,203 | F7: 14,412,070 | G7: 7,203,000
A8: 31120M15P040000 DIRECCION DE PROCESOS DE | B8: 255,897 | C8: -112,444 | D8: 143,453 | E8: 93,701 | F8: 92,767 | G8: 49,753
A9: 31120M15P050000 DIRECCION DE GEOSTADISTI | B9: 373,407 | C9: -207,239 | D9: 166,168 | E9: 141,305 | F9: 122,982 | G9: 24,863
B10: 0 | C10: 0 | D10: 0 | E10: 0 | F10: 0 | G10: 0
B11: 0 | C11: 0 | D11: 0 | E11: 0 | F11: 0 | G11: 0
B12: 0 | C12: 0 | D12: =B12+C12 -> 0 | E12: 0 | F12: 0 | G12: =D12-E12 -> 0
B13: 0 | C13: 0 | D13: 0 | E13: 0 | F13: 0 | G13: 0
A14: Total del Egreso | B14: =SUM(B5:B13) -> 28,340,942 | C14: 5,268,704 | D14: 33,609,645 | E14: 24,782,523 | F14: 23,430,419 | G14: 8,827,123
A16: INSTITUTO MUNICIPAL DE PLANEACIÓN DE IRAPUATO, GTO. Estado Analítico del Ejercicio del Presupuesto de Egresos Clasificación Administrativa Del 1 de Enero al 31 de Diciembre de 2025 (Cifras en Pesos)
B17: Egresos | G17: Subejercicio
A18: Concepto | B18: Aprobado | C18: Ampliaciones/ (Reducciones) | D18: Modificado | E18: Devengado | F18: Pagado
A20: Poder Ejecutivo | B20: 0 | C20: 0 | D20: =B20+C20 -> 0 | E20: 0 | F20: 0 | G20: =D20-E20 -> 0
A21: Poder Legislativo | B21: 0 | C21: 0 | D21: =B21+C21 -> 0 | E21: 0 | F21: 0 | G21: =D21-E21 -> 0
A22: Poder Judicial | B22: 0 | C22: 0 | D22: 0 | E22: 0 | F22: 0 | G22: 0
A23: Órganos Autónomos | B23: 0 | C23: 0 | D23: 0 | E23: 0 | F23: 0 | G23: 0
A25: Total del Egreso | B25: =SUM(B20:B23) -> 0 | C25: 0 | D25: 0 | E25: 0 | F25: 0 | G25: 0
A28: INSTITUTO MUNICIPAL DE PLANEACIÓN DE IRAPUATO, GTO. Estado Analítico del Ejercicio del Presupuesto de Egresos Clasificación Administrativa Del 1 de Enero al 31 de Diciembre de 2025 (Cifras en Pesos)
B29: Egresos | G29: Subejercicio
A30: Concepto | B30: Aprobado | C30: Ampliaciones/ (Reducciones) | D30: Modificado | E30: Devengado | F30: Pagado
A32: Entidades Paraestatales y Fideicomisos No Empresariales y No Financieros | B32: 0 | C32: 0 | D32: =B32+C32 -> 0 | E32: 0 | F32: 0 | G32: =D32-E32 -> 0
A34: Instituciones Públicas de la Seguridad Social | B34: 0 | C34: 0 | D34: 0 | E34: 0 | F34: 0 | G34: 0
A36: Entidades Paraestatales Empresariales No Financieras con Participación Estatal Mayoritaria | B36: 0 | C36: 0 | D36: 0 | E36: 0 | F36: 0 | G36: 0
A38: Fideicomisos Empresariales No Financieros con Participación Estatal Mayoritaria | B38: 0 | C38: 0 | D38: 0 | E38: 0 | F38: 0 | G38: 0
A40: Entidades Paraestatales Empresariales Financieras Monetarias con Participación Estatal Mayoritaria | B40: 0 | C40: 0 | D40: 0 | E40: 0 | F40: 0 | G40: 0
A42: Entidades Paraestatales Empresariales Financieras No Monetarias con Participación Estatal Mayoritaria | B42: 0 | C42: 0 | D42: =B42+C42 -> 0 | E42: 0 | F42: 0 | G42: =D42-E42 -> 0
A44: Fideicomisos Financieros Públicos con Participación Estatal Mayoritaria | B44: 0 | C44: 0 | D44: 0 | E44: 0 | F44: 0 | G44: 0
A46: Entidades Paramunicipales (en sus diferentes clasificaciones) | B46: 28,340,942 | C46: 5,268,704 | D46: =B46+C46 -> 33,609,645 | E46: 24,782,523 | F46: 23,430,419 | G46: =D46-E46 -> 8,827,123
A48: Total del Egreso | B48: =SUM(B32:B46) -> 28,340,942 | C48: 5,268,704 | D48: 33,609,645 | E48: 24,782,523 | F48: 23,430,419 | G48: 8,827,123
A50: “Bajo protesta de decir verdad declaramos que los Estados Financieros y sus notas, son razonablemente correctos y son responsabilidad del emisor”

Sheet CTG
A1: INSTITUTO MUNICIPAL DE PLANEACIÓN DE IRAPUATO, GTO. Estado Analítico del Ejercicio del Presupuesto de Egresos Clasificación Económica (por Tipo de Gasto) Del 1 de Enero al 31 de Diciembre de 2025 (Cifras en Pesos)
B2: Egresos | G2: Subejercicio
A3: Concepto | B3: Aprobado | C3: Ampliaciones/ (Reducciones) | D3: Modificado | E3: Devengado | F3: Pagado
A5: Gasto Corriente | B5: 28,092,942 | C5: 4,397,160 | D5: =B5+C5 -> 32,490,101 | E5: 23,873,678 | F5: 22,521,574 | G5: =D5-E5 -> 8,616,423
A7: Gasto de Capital | B7: 248,000 | C7: 871,544 | D7: =B7+C7 -> 1,119,544 | E7: 908,845 | F7: 908,845 | G7: =D7-E7 -> 210,699
A9: Amortización de la Deuda y Disminución de Pasivos | B9: 0 | C9: 0 | D9: =B9+C9 -> 0 | E9: 0 | F9: 0 | G9: =D9-E9 -> 0
A11: Pensiones y Jubilaciones | B11: 0 | C11: 0 | D11: =B11+C11 -> 0 | E11: 0 | F11: 0 | G11: =D11-E11 -> 0
A13: Participaciones | B13: 0 | C13: 0 | D13: =B13+C13 -> 0 | E13: 0 | F13: 0 | G13: =D13-E13 -> 0
A15: Total del Egreso | B15: =SUM(B5+B7+B9+B11+B13) -> 28,340,942 | C15: 5,268,704 | D15: 33,609,645 | E15: 24,782,523 | F15: 23,430,419 | G15: 8,827,123
A18: “Bajo protesta de decir verdad declaramos que los Estados Financieros y sus notas, son razonablemente correctos y son responsabilidad del emisor”

Sheet COG
A1: INSTITUTO MUNICIPAL DE PLANEACIÓN DE IRAPUATO, GTO. Estado Analítico del Ejercicio del Presupuesto de Egresos Clasificación por Objeto del Gasto (Capítulo y Concepto) Del 1 de Enero al 31 de Diciembre de 2025 (Cifras en Pesos)
B2: Egresos | G2: Subejercicio
A3: Concepto | B3: Aprobado | C3: Ampliaciones/ (Reducciones) | D3: Modificado | E3: Devengado | F3: Pagado
A4: Servicios Personales | B4: =SUM(B5:B11) -> 9,606,080 | C4: =SUM(C5:C11) -> 0 | D4: =B4+C4 -> 9,606,080 | E4: =SUM(E5:E11) -> 8,153,936 | F4: =SUM(F5:F11) -> 7,980,086 | G4: =D4-E4 -> 1,452,144
A5: Remuneraciones al Personal de Carácter Permanente | B5: 4,786,013 | C5: 0 | D5: =B5+C5 -> 4,786,013 | E5: 4,765,063 | F5: 4,765,063 | G5: =D5-E5 -> 20,950 | H5: 1100
A6: Remuneraciones al Personal de Carácter Transitorio | B6: 0 | C6: 0 | D6: 0 | E6: 0 | F6: 0 | G6: 0 | H6: 1200
A7: Remuneraciones Adicionales y Especiales | B7: 780,403 | C7: 0 | D7: 780,403 | E7: 768,170 | F7: 768,170 | G7: 12,233 | H7: 1300
A8: Seguridad Social | B8: 1,440,529 | C8: 0 | D8: 1,440,529 | E8: 1,263,625 | F8: 1,089,775 | G8: 176,904 | H8: 1400
A9: Otras Prestaciones Sociales y Económicas | B9: 2,599,135 | C9: 0 | D9: 2,599,135 | E9: 1,357,078 | F9: 1,357,078 | G9: 1,242,057 | H9: 1500
A10: Previsiones | B10: 0 | C10: 0 | D10: 0 | E10: 0 | F10: 0 | G10: 0 | H10: 1600
A11: Pago de Estímulos a Servidores Públicos | B11: 0 | C11: 0 | D11: 0 | E11: 0 | F11: 0 | G11: 0 | H11: 1700
A12: Materiales y Suministros | B12: =SUM(B13:B21) -> 334,975 | C12: =SUM(C13:C21) -> 54,071 | D12: 389,046 | E12: =SUM(E13:E21) -> 323,879 | F12: =SUM(F13:F21) -> 313,609 | G12: 65,166 | H12: 0
A13: Materiales de Administración, Emisión de Documentos y Artículos Oficiales | B13: 93,500 | C13: 44,070 | D13: 137,570 | E13: 116,476 | F13: 116,476 | G13: 21,094 | H13: 2100
A14: Alimentos y Utensilios | B14: 128,000 | C14: 10,001 | D14: 138,001 | E14: 111,515 | F14: 111,515 | G14: 26,486 | H14: 2200
A15: Materias Primas y Materiales de Producción y Comercialización | B15: 0 | C15: 0 | D15: 0 | E15: 0 | F15: 0 | G15: 0 | H15: 2300
A16: Materiales y Artículos de Construcción y de Reparación | B16: 0 | C16: 0 | D16: 0 | E16: 0 | F16: 0 | G16: 0 | H16: 2400
A17: Productos Químicos, Farmacéuticos y de Laboratorio | B17: 1,500 | C17: 0 | D17: 1,500 | E17: 538 | F17: 538 | G17: 962 | H17: 2500
A18: Combustibles, Lubricantes y Aditivos | B18: 49,875 | C18: 0 | D18: 49,875 | E18: 49,645 | F18: 49,645 | G18: 230 | H18: 2600
A19: Vestuario, Blancos, Prendas de Protección y Artículos Deportivos | B19: 33,600 | C19: 0 | D19: 33,600 | E19: 21,060 | F19: 10,790 | G19: 12,540 | H19: 2700
A20: Materiales y Suministros Para Seguridad | B20: 0 | C20: 0 | D20: 0 | E20: 0 | F20: 0 | G20: 0 | H20: 2800
A21: Herramientas, Refacciones y Accesorios Menores | B21: 28,500 | C21: 0 | D21: 28,500 | E21: 24,646 | F21: 24,646 | G21: 3,855 | H21: 2900
A22: Servicios Generales | B22: =SUM(B23:B31) -> 18,151,887 | C22: =SUM(C23:C31) -> 4,343,089 | D22: 22,494,976 | E22: =SUM(E23:E31) -> 15,395,863 | F22: =SUM(F23:F31) -> 14,227,879 | G22: 7,099,113 | H22: 0
A23: Servicios Básicos | B23: 1,144,150 | C23: -721,975 | D23: 422,175 | E23: 384,848 | F23: 367,460 | G23: 37,327 | H23: 3100
A24: Servicios de Arrendamiento | B24: 418,820 | C24: 2,412 | D24: 421,232 | E24: 398,137 | F24: 398,137 | G24: 23,095 | H24: 3200
A25: Servicios Profesionales, Científicos, Técnicos y Otros Servicios | B25: 15,706,948 | C25: 5,268,584 | D25: 20,975,532 | E25: 14,079,335 | F25: 12,966,188 | G25: 6,896,197 | H25: 3300
A26: Servicios Financieros, Bancarios y Comerciales | B26: 121,400 | C26: -85,717 | D26: 35,683 | E26: 35,069 | F26: 35,069 | G26: 614 | H26: 3400
A27: Servicios de Instalación, Reparación, Mantenimiento y Conservación | B27: 227,000 | C27: -100,000 | D27: 127,000 | E27: 73,482 | F27: 73,482 | G27: 53,518 | H27: 3500
A28: Servicios de Comunicación Social y Publicidad | B28: 15,000 | C28: 0 | D28: 15,000 | E28: 0 | F28: 0 | G28: 15,000 | H28: 3600
A29: Servicios de Traslado y Viáticos | B29: 69,500 | C29: 59,785 | D29: 129,285 | E29: 71,951 | F29: 71,951 | G29: 57,334 | H29: 3700
A30: Servicios Oficiales | B30: 181,500 | C30: -50,000 | D30: 131,500 | E30: 123,349 | F30: 123,349 | G30: 8,152 | H30: 3800
A31: Otros Servicios Generales | B31: 267,568 | C31: -30,000 | D31: 237,568 | E31: 229,692 | F31: 192,244 | G31: 7,876 | H31: 3900
A32: Transferencias, Asignaciones, Subsidios y Otras Ayudas | B32: =SUM(B33:B41) -> 0 | C32: =SUM(C33:C41) -> 0 | D32: 0 | E32: =SUM(E33:E41) -> 0 | F32: =SUM(F33:F41) -> 0 | G32: 0 | H32: 0
A33: Transferencias Internas y Asignaciones al Sector Público | B33: 0 | C33: 0 | D33: 0 | E33: 0 | F33: 0 | G33: 0 | H33: 4100
A34: Transferencias al Resto del Sector Público | B34: 0 | C34: 0 | D34: 0 | E34: 0 | F34: 0 | G34: 0 | H34: 4200
A35: Subsidios y Subvenciones | B35: 0 | C35: 0 | D35: 0 | E35: 0 | F35: 0 | G35: 0 | H35: 4300
A36: Ayudas Sociales | B36: 0 | C36: 0 | D36: 0 | E36: 0 | F36: 0 | G36: 0 | H36: 4400
A37: Pensiones y Jubilaciones | B37: 0 | C37: 0 | D37: 0 | E37: 0 | F37: 0 | G37: 0 | H37: 4500
A38: Transferencias a Fideicomisos, Mandatos y Otros Análogos | B38: 0 | C38: 0 | D38: 0 | E38: 0 | F38: 0 | G38: 0 | H38: 4600
A39: Transferencias a la Seguridad Social | B39: 0 | C39: 0 | D39: 0 | E39: 0 | F39: 0 | G39: 0 | H39: 4700
A40: Donativos | B40: 0 | C40: 0 | D40: 0 | E40: 0 | F40: 0 | G40: 0 | H40: 4800
A41: Transferencias al Exterior | B41: 0 | C41: 0 | D41: 0 | E41: 0 | F41: 0 | G41: 0 | H41: 4900
A42: Bienes Muebles, Inmuebles e Intangibles | B42: =SUM(B43:B51) -> 248,000 | C42: =SUM(C43:C51) -> 871,544 | D42: 1,119,544 | E42: =SUM(E43:E51) -> 908,845 | F42: =SUM(F43:F51) -> 908,845 | G42: 210,699 | H42: 0
A43: Mobiliario y Equipo de Administración | B43: 210,000 | C43: 31,544 | D43: 241,544 | E43: 154,361 | F43: 154,361 | G43: 87,183 | H43: 5100
A44: Mobiliario y Equipo Educacional y Recreativo | B44: 0 | C44: 0 | D44: 0 | E44: 0 | F44: 0 | G44: 0 | H44: 5200
A45: Equipo e Instrumental Médico y de Laboratorio | B45: 0 | C45: 0 | D45: 0 | E45: 0 | F45: 0 | G45: 0 | H45: 5300
A46: Vehículos y Equipo de Transporte | B46: 0 | C46: 840,000 | D46: 840,000 | E46: 717,990 | F46: 717,990 | G46: 122,010 | H46: 5400
A47: Equipo de Defensa y Seguridad | B47: 0 | C47: 0 | D47: 0 | E47: 0 | F47: 0 | G47: 0 | H47: 5500
A48: Maquinaria, Otros Equipos y Herramientas | B48: 0 | C48: 0 | D48: 0 | E48: 0 | F48: 0 | G48: 0 | H48: 5600
A49: Activos Biológicos | B49: 0 | C49: 0 | D49: 0 | E49: 0 | F49: 0 | G49: 0 | H49: 5700
A50: Bienes Inmuebles | B50: 0 | C50: 0 | D50: 0 | E50: 0 | F50: 0 | G50: 0 | H50: 5800
A51: Activos Intangibles | B51: 38,000 | C51: 0 | D51: 38,000 | E51: 36,494 | F51: 36,494 | G51: 1,506 | H51: 5900
A52: Inversión Pública | B52: =SUM(B53:B55) -> 0 | C52: =SUM(C53:C55) -> 0 | D52: 0 | E52: =SUM(E53:E55) -> 0 | F52: =SUM(F53:F55) -> 0 | G52: 0 | H52: 0
A53: Obra Pública en Bienes de Dominio Público | B53: 0 | C53: 0 | D53: 0 | E53: 0 | F53: 0 | G53: 0 | H53: 6100
A54: Obra Pública en Bienes Propios | B54: 0 | C54: 0 | D54: 0 | E54: 0 | F54: 0 | G54: 0 | H54: 6200
A55: Proyectos Productivos y Acciones de Fomento | B55: 0 | C55: 0 | D55: 0 | E55: 0 | F55: 0 | G55: 0 | H55: 6300
A56: Inversiones Financieras y Otras Provisiones | B56: =SUM(B57:B63) -> 0 | C56: =SUM(C57:C63) -> 0 | D56: 0 | E56: =SUM(E57:E63) -> 0 | F56: =SUM(F57:F63) -> 0 | G56: 0 | H56: 0
A57: Inversiones Para el Fomento de Actividades Productivas | B57: 0 | C57: 0 | D57: 0 | E57: 0 | F57: 0 | G57: 0 | H57: 7100
A58: Acciones y Participaciones de Capital | B58: 0 | C58: 0 | D58: 0 | E58: 0 | F58: 0 | G58: 0 | H58: 7200
A59: Compra de Títulos y Valores | B59: 0 | C59: 0 | D59: 0 | E59: 0 | F59: 0 | G59: 0 | H59: 7300
A60: Concesión de Préstamos | B60: 0 | C60: 0 | D60: 0 | E60: 0 | F60: 0 | G60: 0 | H60: 7400
A61: Inversiones en Fideicomisos, Mandatos y Otros Análogos | B61: 0 | C61: 0 | D61: 0 | E61: 0 | F61: 0 | G61: 0 | H61: 7500
A62: Otras Inversiones Financieras | B62: 0 | C62: 0 | D62: 0 | E62: 0 | F62: 0 | G62: 0 | H62: 7600
A63: Provisiones para Contingencias y Otras Erogaciones Especiales | B63: 0 | C63: 0 | D63: 0 | E63: 0 | F63: 0 | G63: 0 | H63: 7900
A64: Participaciones y Aportaciones | B64: =SUM(B65:B67) -> 0 | C64: =SUM(C65:C67) -> 0 | D64: 0 | E64: =SUM(E65:E67) -> 0 | F64: =SUM(F65:F67) -> 0 | G64: 0 | H64: 0
A65: Participaciones | B65: 0 | C65: 0 | D65: 0 | E65: 0 | F65: 0 | G65: 0 | H65: 8100
A66: Aportaciones | B66: 0 | C66: 0 | D66: 0 | E66: 0 | F66: 0 | G66: 0 | H66: 8300
A67: Convenios | B67: 0 | C67: 0 | D67: 0 | E67: 0 | F67: 0 | G67: 0 | H67: 8500
A68: Deuda Pública | B68: =SUM(B69:B75) -> 0 | C68: =SUM(C69:C75) -> 0 | D68: 0 | E68: =SUM(E69:E75) -> 0 | F68: =SUM(F69:F75) -> 0 | G68: 0 | H68: 0
A69: Amortización de la Deuda Pública | B69: 0 | C69: 0 | D69: =B69+C69 -> 0 | E69: 0 | F69: 0 | G69: =D69-E69 -> 0 | H69: 9100
A70: Intereses de la Deuda Pública | B70: 0 | C70: 0 | D70: 0 | E70: 0 | F70: 0 | G70: 0 | H70: 9200
A71: Comisiones de la Deuda Pública | B71: 0 | C71: 0 | D71: 0 | E71: 0 | F71: 0 | G71: 0 | H71: 9300
A72: Gastos de la Deuda Pública | B72: 0 | C72: 0 | D72: 0 | E72: 0 | F72: 0 | G72: 0 | H72: 9400
A73: Costo por Coberturas | B73: 0 | C73: 0 | D73: 0 | E73: 0 | F73: 0 | G73: 0 | H73: 9500
A74: Apoyos Financieros | B74: 0 | C74: 0 | D74: 0 | E74: 0 | F74: 0 | G74: 0 | H74: 9600
A75: Adeudos de Ejercicios Fiscales Anteriores (Adefas) | B75: 0 | C75: 0 | D75: 0 | E75: 0 | F75: 0 | G75: 0 | H75: 9900
A76: Total del Egreso | B76: =SUM(B4+B12+B22+B32+B42+B52+B56+B64+B68) -> 28,340,942 | C76: 5,268,704 | D76: 33,609,645 | E76: 24,782,523 | F76: 23,430,419 | G76: 8,827,123
A78: “Bajo protesta de decir verdad declaramos que los Estados Financieros y sus notas, son razonablemente correctos y son responsabilidad del emisor”

Sheet CFG
A1: INSTITUTO MUNICIPAL DE PLANEACIÓN DE IRAPUATO, GTO. Estado Analítico del Ejercicio del Presupuesto de Egresos Clasificación Funcional (Finalidad y Función) Del 1 de Enero al 31 de Diciembre de 2025 (Cifras en Pesos)
B2: Egresos | G2: Subejercicio
A3: Concepto | B3: Aprobado | C3: Ampliaciones/ (Reducciones) | D3: Modificado | E3: Devengado | F3: Pagado
A5: Gobierno | B5: =SUM(B6:B13) -> 28,340,942 | C5: 5,268,704 | D5: 33,609,645 | E5: 24,782,523 | F5: 23,430,419 | G5: 8,827,123
A6: Legislación | B6: 0 | C6: 0 | D6: =B6+C6 -> 0 | E6: 0 | F6: 0 | G6: =D6-E6 -> 0
A7: Justicia | B7: 0 | C7: 0 | D7: =B7+C7 -> 0 | E7: 0 | F7: 0 | G7: =D7-E7 -> 0
A8: Coordinación de la Política de Gobierno | B8: 28,340,942 | C8: 5,268,704 | D8: 33,609,645 | E8: 24,782,523 | F8: 23,430,419 | G8: 8,827,123
A9: Relaciones Exteriores | B9: 0 | C9: 0 | D9: 0 | E9: 0 | F9: 0 | G9: 0
A10: Asuntos Financieros y Hacendarios | B10: 0 | C10: 0 | D10: 0 | E10: 0 | F10: 0 | G10: 0
A11: Seguridad Nacional | B11: 0 | C11: 0 | D11: 0 | E11: 0 | F11: 0 | G11: 0
A12: Asuntos de Orden Público y de Seguridad Interior | B12: 0 | C12: 0 | D12: 0 | E12: 0 | F12: 0 | G12: 0
A13: Otros Servicios Generales | B13: 0 | C13: 0 | D13: 0 | E13: 0 | F13: 0 | G13: 0
A15: Desarrollo Social | B15: =SUM(B16:B22) -> 0 | C15: 0 | D15: 0 | E15: 0 | F15: 0 | G15: 0
A16: Protección Ambiental | B16: 0 | C16: 0 | D16: =B16+C16 -> 0 | E16: 0 | F16: 0 | G16: =D16-E16 -> 0
A17: Vivienda y Servicios a la Comunidad | B17: 0 | C17: 0 | D17: =B17+C17 -> 0 | E17: 0 | F17: 0 | G17: 0
A18: Salud | B18: 0 | C18: 0 | D18: 0 | E18: 0 | F18: 0 | G18: 0
A19: Recreación, Cultura y Otras Manifestaciones Sociales | B19: 0 | C19: 0 | D19: 0 | E19: 0 | F19: 0 | G19: 0
A20: Educación | B20: 0 | C20: 0 | D20: 0 | E20: 0 | F20: 0 | G20: 0
A21: Protección Social | B21: 0 | C21: 0 | D21: 0 | E21: 0 | F21: 0 | G21: 0
A22: Otros Asuntos Sociales | B22: 0 | C22: 0 | D22: 0 | E22: 0 | F22: 0 | G22: 0
A24: Desarrollo Económico | B24: =SUM(B25:B33) -> 0 | C24: 0 | D24: 0 | E24: 0 | F24: 0 | G24: 0
A25: Asuntos Económicos, Comerciales y Laborales en General | B25: 0 | C25: 0 | D25: =B25+C25 -> 0 | E25: 0 | F25: 0 | G25: =D25-E25 -> 0
A26: Agropecuaria, Silvicultura, Pesca y Caza | B26: 0 | C26: 0 | D26: =B26+C26 -> 0 | E26: 0 | F26: 0 | G26: 0
A27: Combustibles y Energía | B27: 0 | C27: 0 | D27: 0 | E27: 0 | F27: 0 | G27: 0
A28: Minería, Manufacturas y Construcción | B28: 0 | C28: 0 | D28: 0 | E28: 0 | F28: 0 | G28: 0
A29: Transporte | B29: 0 | C29: 0 | D29: 0 | E29: 0 | F29: 0 | G29: 0
A30: Comunicaciones | B30: 0 | C30: 0 | D30: 0 | E30: 0 | F30: 0 | G30: 0
A31: Turismo | B31: 0 | C31: 0 | D31: 0 | E31: 0 | F31: 0 | G31: 0
A32: Ciencia, Tecnología e Innovación | B32: 0 | C32: 0 | D32: 0 | E32: 0 | F32: 0 | G32: 0
A33: Otras Industrias y Otros Asuntos Económicos | B33: 0 | C33: 0 | D33: 0 | E33: 0 | F33: 0 | G33: 0
A35: Otras no Clasificadas en Funciones Anteriores | B35: =SUM(B36:B39) -> 0 | C35: 0 | D35: 0 | E35: 0 | F35: 0 | G35: 0
A36: Transacciones de la Deuda Pública / Costo Financiero de la Deuda | B36: 0 | C36: 0 | D36: =B36+C36 -> 0 | E36: 0 | F36: 0 | G36: =D36-E36 -> 0
A37: Transferencias, Participaciones y Aportaciones Entre Diferentes Niveles y Ordenes de Gobierno | B37: 0 | C37: 0 | D37: =B37+C37 -> 0 | E37: 0 | F37: 0 | G37: 0
A38: Saneamiento del Sistema Financiero | B38: 0 | C38: 0 | D38: 0 | E38: 0 | F38: 0 | G38: 0
A39: Adeudos de Ejercicios Fiscales Anteriores | B39: 0 | C39: 0 | D39: 0 | E39: 0 | F39: 0 | G39: 0
A41: Total del Egreso | B41: =SUM(B35+B24+B15+B5) -> 28,340,942 | C41: 5,268,704 | D41: 33,609,645 | E41: 24,782,523 | F41: 23,430,419 | G41: 8,827,123
A43: “Bajo protesta de decir verdad declaramos que los Estados Financieros y sus notas, son razonablemente correctos y son responsabilidad del emisor”
